bitfinex/quotes_ETHUSD_20240722
["timestamp","ask_amount","ask_price","bid_price","bid_amount"]
[1721606401505,2.4039,3542.7,3541.9,0.43604308]
[1721606402087,2.4039,3542.7,3541.8,0.38385551]
[1721606402300,2.7539,3542.7,3541.8,0.38385551]
[1721606403358,2.4039,3542.7,3541.8,0.38385551]
[1721606403560,2.4039,3542.7,3541.5,1.14963884]
[1721606403780,2.7539,3542.7,3541.5,0.55714066]
[1721606404002,2.4308,3542.5,3541.5,0.55714066]
[1721606405002,0.35,3542.2,3541.5,0.55714066]
[1721606405212,0.14,3542.5,3541.5,0.55714066]
[1721606405213,2.3825,3542.1,3541.5,0.55714066]
[1721606405505,0.53825,3542.0,3541.5,0.55714066]
[1721606405660,2.7325,3542.1,3541.5,0.55714066]
[1721606407404,0.35,3542.1,3541.5,0.55714066]
[1721606407787,3.0,3542.4,3541.5,0.55714066]
[1721606408178,0.35,3542.3,3541.5,0.55714066]
[1721606408797,3.0,3542.4,3541.6,0.9820302]
[1721606408995,3.0,3542.4,3541.7,0.38344709]
[1721606409206,0.14,3542.5,3541.7,0.38344709]
[1721606409501,0.14,3542.5,3541.8,3.27167027]
[1721606409710,0.14,3542.5,3541.8,2.2897]
[1721606410180,0.14,3542.5,3541.8,3.3247]
[1721606410509,0.14,3542.5,3542.0,1.035]
[1721606410811,0.14,3542.5,3541.9,2.88489326]
[1721606410812,0.14,3542.5,3541.9,0.43006453]
[1721606410967,0.14,3542.5,3542.0,0.98189933]
[1721606411303,0.14,3542.5,3541.9,0.43006453]
[1721606411508,0.14,3542.5,3542.2,1.035]
[1721606411815,0.14,3542.5,3542.4,1.035]
[1721606412121,2.3446,3543.9,3542.4,7.77677709]
[1721606412263,2.3446,3543.9,3542.5,3.04513349]
[1721606412604,2.3446,3543.9,3542.6,2.45419506]
[1721606412771,2.3446,3543.9,3542.7,1.51866603]
[1721606412970,2.3446,3543.9,3542.7,0.53691513]
[1721606413194,2.3446,3543.9,3542.4,2.3242]
[1721606413669,2.479,3543.2,3542.2,0.59075624]
[1721606413898,2.479,3543.2,3542.1,7.3]
[1721606414072,2.479,3543.2,3542.2,2.45449704]
[1721606414426,2.479,3543.2,3542.1,7.3]
[1721606414427,2.479,3543.6,3542.1,7.3]
[1721606414576,3.0,3543.5,3542.2,4.17330987]
[1721606414770,2.2883,3544.2,3542.4,2.3781]
[1721606414980,9.2842,3545.6,3542.7,0.59075624]
[1721606415192,0.14978139,3542.9,3542.8,3.04518069]
[1721606415504,0.14978139,3542.9,3542.8,2.45442445]
[1721606415712,0.14978139,3542.9,3542.8,1.61271223]
[1721606416098,0.14978139,3542.9,3542.8,0.63094151]
[1721606416286,0.14978139,3542.9,3542.2,4.09698542]
[1721606416484,0.14978139,3542.9,3542.3,3.98172886]
[1721606416817,0.14978139,3542.9,3542.4,0.9817105]
[1721606416971,0.14978139,3542.9,3542.3,3.0]
[1721606417170,0.14978139,3542.9,3542.4,2.4542035]
[1721606417425,0.14978139,3542.9,3542.3,3.59075624]
[1721606417426,0.14978139,3542.9,3542.5,0.95511889]
[1721606418298,0.09332727,3542.9,3542.5,0.95511889]
[1721606421696,0.09332727,3542.9,3542.2,3.50622918]
[1721606422406,0.09332727,3542.9,3542.2,1.12812918]
[1721606422737,0.09332727,3542.9,3541.7,12.47]
[1721606422738,0.09332727,3542.9,3541.5,7.85714066]
[1721606422919,0.35,3542.7,3541.5,7.85714066]
[1721606423433,2.31,3542.8,3541.5,7.85714066]
[1721606423737,0.35,3542.7,3541.5,7.85714066]
[1721606423961,0.35,3542.7,3541.6,0.78571407]
[1721606424108,0.35,3542.7,3541.5,7.85714066]
[1721606425111,2.31,3542.8,3541.5,7.85714066]
[1721606425328,0.09332727,3542.9,3541.5,7.85714066]
[1721606425652,0.09332727,3542.9,3541.6,2.4447]
[1721606426243,0.44332727,3542.9,3541.6,2.4447]
[1721606426423,0.44332727,3542.9,3541.7,1.03018407]
[1721606426621,0.09332727,3542.9,3541.7,1.03018407]
[1721606427050,0.44332727,3542.9,3541.7,1.03018407]
[1721606427558,0.44332727,3542.9,3541.5,7.85714066]
[1721606428309,2.4273,3542.8,3541.5,7.85714066]
[1721606428733,5.4273,3542.8,3541.5,7.85714066]
[1721606429614,0.35,3542.4,3541.5,7.85714066]
[1721606429912,2.3178,3542.3,3541.5,7.85714066]
[1721606430111,0.26678,3542.2,3541.5,7.85714066]
[1721606430316,2.82358,3541.6,3541.5,7.85714066]
[1721606430553,5.64716,3541.6,3541.5,0.55714066]
[1721606430754,2.82358,3541.6,3541.5,0.55714066]
[1721606431426,5.64716,3541.6,3541.5,0.55714066]
[1721606432861,2.82358,3541.6,3541.5,0.55714066]
[1721606433561,5.64716,3541.6,3541.5,0.55714066]
[1721606433975,2.82358,3541.6,3541.5,0.55714066]
[1721606434270,5.64716,3541.6,3541.5,0.55714066]
[1721606434424,2.82358,3541.6,3541.5,0.55714066]
[1721606435531,5.64716,3541.6,3541.5,0.55714066]
[1721606435941,2.82358,3541.6,3541.5,0.55714066]
[1721606439771,5.64716,3541.6,3541.5,0.55714066]
[1721606440269,2.82358,3541.6,3541.5,0.55714066]
[1721606440571,5.64716,3541.6,3541.5,0.55714066]
[1721606440781,0.26678,3542.2,3541.5,0.55714066]
[1721606441072,0.35,3542.0,3541.5,0.55714066]
[1721606441440,2.3822,3541.9,3541.5,0.55714066]
[1721606446841,2.7322,3541.9,3541.5,0.55714066]
[1721606447043,3.0,3541.8,3541.5,0.55714066]
[1721606447235,0.57322,3541.7,3541.5,0.55714066]
[1721606447439,3.0,3541.8,3541.5,0.55714066]
[1721606447677,2.3822,3541.9,3541.5,0.55714066]
[1721606450485,3.0,3542.0,3541.5,0.55714066]
[1721606450793,2.4832,3542.8,3541.5,0.55714066]
[1721606450956,0.35,3542.6,3541.5,0.84215473]
[1721606451146,0.35,3542.6,3541.6,2.293]
[1721606451340,2.77761762,3542.8,3541.6,2.293]
[1721606451544,0.35,3542.7,3541.6,2.293]
[1721606451858,0.29441762,3542.8,3541.7,0.31351547]
[1721606452473,0.64441762,3542.8,3541.7,0.31351547]
[1721606452879,2.3315,3542.7,3541.6,2.293]
[1721606453389,5.3315,3542.7,3541.6,2.293]
[1721606454991,0.64441762,3542.8,3541.6,2.3235]
[1721606455171,2.3667,3543.4,3541.6,2.3235]
[1721606455344,2.3667,3543.4,3541.8,2.3235]
[1721606455546,0.29422365,3543.2,3541.8,2.3235]
[1721606456878,2.3667,3543.9,3541.8,2.3235]
[1721606457045,0.29419465,3543.3,3541.8,2.3235]
[1721606461380,3.0,3543.8,3541.8,2.3235]
[1721606461596,0.2941137,3543.6,3541.8,2.3235]
[1721606463396,2.3585,3543.1,3541.8,2.3235]
[1721606465958,5.4951,3543.5,3541.8,2.3235]
[1721606468255,5.4951,3543.5,3541.9,0.98179633]
[1721606468460,3.0,3543.5,3542.0,0.05646224]
[1721606468748,3.2941137,3543.6,3542.0,2.2644]
[1721606468904,3.2941137,3543.6,3542.1,0.98175574]
[1721606469100,3.2941137,3543.6,3542.2,0.62461557]
[1721606469508,2.2706,3543.0,3542.0,2.2644]
[1721606470352,2.2706,3543.0,3541.7,0.28806407]
[1721606471815,0.38689865,3542.9,3541.7,0.28806407]
[1721606472124,3.38689865,3542.9,3541.7,0.28806407]
[1721606472710,3.1296664,3542.9,3541.7,0.28806407]
[1721606472910,0.54002664,3542.8,3541.7,0.28806407]
[1721606473154,3.0,3542.9,3541.7,0.28806407]
[1721606473321,2.2706,3543.0,3541.7,0.28806407]
[1721606476581,2.2706,3543.0,3541.6,2.4862]
[1721606476780,2.2706,3543.0,3541.5,7.85714066]
[1721606476999,2.56424788,3543.0,3541.5,7.85714066]
[1721606477172,3.55,3542.9,3541.5,7.85714066]
[1721606477362,2.4086,3542.8,3541.5,7.85714066]
[1721606477564,0.66022479,3542.7,3541.5,7.85714066]
[1721606477773,0.44282326,3542.6,3541.5,7.85714066]
[1721606478494,3.0,3542.7,3541.7,2.4807]
[1721606478695,2.4086,3543.1,3541.7,2.4807]
[1721606478912,0.44277041,3543.0,3541.7,2.4807]
[1721606479226,3.44277041,3543.0,3541.8,1.03378407]
[1721606487219,3.44277041,3543.0,3541.7,2.4807]
[1721606490034,0.504221,3542.9,3541.7,2.4807]
[1721606490329,3.44277041,3543.0,3541.7,2.4807]
[1721606490498,0.50426113,3542.9,3541.7,2.4807]
[1721606490701,0.50426113,3542.8,3541.7,2.4807]
[1721606490902,0.78450311,3542.9,3541.7,2.4807]
[1721606491520,0.50423907,3542.8,3541.7,2.4807]
[1721606491720,1.13450311,3542.9,3541.7,2.4807]
[1721606491897,0.50422173,3542.8,3541.7,2.4807]
[1721606492092,0.47314953,3542.7,3541.7,2.4807]
[1721606493422,2.4695,3542.6,3541.7,2.4807]
[1721606493633,0.50431739,3542.5,3541.7,2.4807]
[1721606493934,3.0,3542.5,3541.7,2.4807]
[1721606494153,5.76283853,3542.6,3541.7,2.4807]
[1721606494337,1.12792642,3542.5,3541.7,2.4807]
[1721606494510,0.50432761,3542.4,3541.7,2.4807]
[1721606495302,0.50432761,3542.4,3541.5,7.85714066]
[1721606495840,0.50432761,3542.4,3541.5,0.55714066]
[1721606495996,0.85432761,3542.4,3541.5,0.55714066]
[1721606496202,1.22840411,3542.3,3541.5,0.55714066]
[1721606496404,0.50432761,3542.2,3541.5,0.55714066]
[1721606496915,0.7240765,3542.3,3541.5,0.55714066]
[1721606496916,2.8652127,3542.1,3541.5,0.55714066]
[1721606497117,1.0545127,3542.0,3541.5,0.55714066]
[1721606497329,1.7,3541.8,3541.5,0.55714066]
[1721606497648,0.5045127,3541.7,3541.5,0.55714066]
[1721606497861,0.5045127,3541.7,3541.5,1e-08]
[1721606498005,0.35,3541.6,3541.1,1.0]
[1721606498204,0.5045127,3541.5,3541.1,1.0]
[1721606498400,0.38545127,3541.4,3541.1,1.0]
[1721606498703,0.5045127,3541.3,3541.1,1.0]
[1721606500445,0.38545127,3541.4,3541.1,1.0]
[1721606500849,2.4244,3541.5,3541.1,1.0]
[1721606501015,2.20459998,3541.4,3541.1,1.0]
[1721606501353,0.35,3541.2,3540.2,12.47]
[1721606501515,2.2642,3541.0,3539.8,7.3]
[1721606501711,0.81670679,3540.9,3539.8,7.3]
[1721606501911,0.31189699,3540.9,3539.8,7.3]
[1721606502161,0.35,3540.8,3539.8,7.3]
[1721606502357,0.35,3540.8,3540.7,0.546875]
[1721606502358,2.6,3540.8,3540.7,0.546875]
[1721606502647,5.6,3540.8,3540.7,0.546875]
[1721606502860,6.92250195,3540.8,3540.7,0.546875]
[1721606503059,4.67250195,3540.8,3540.7,0.546875]
[1721606503264,1.1676097,3540.8,3540.7,0.546875]
[1721606504364,1.46042736,3540.8,3540.7,0.546875]
[1721606505619,0.64281766,3540.8,3540.7,0.546875]
[1721606513234,3.06081766,3540.8,3540.7,0.546875]
[1721606513434,6.61081766,3540.8,3540.7,0.546875]
[1721606513775,3.61081766,3540.8,3540.7,0.546875]
[1721606514075,6.61081766,3540.8,3540.7,0.546875]
[1721606514243,7.44189943,3540.8,3540.7,0.546875]
[1721606515645,6.89189943,3540.8,3540.7,0.546875]
[1721606519573,7.44189943,3540.8,3540.7,0.546875]
[1721606521193,2.3864,3540.3,3539.4,7.3]
[1721606521343,2.3864,3540.3,3538.9,2.2781]
[1721606521344,0.40864,3540.2,3538.9,2.2781]
[1721606521543,0.55,3540.1,3538.9,2.2781]
[1721606521744,0.84302658,3540.1,3538.9,2.2781]
[1721606522188,0.35,3539.7,3538.9,2.2781]
[1721606528203,1.7,3539.4,3538.4,9.7754]
[1721606528376,0.17,3539.3,3538.4,2.4754]
[1721606528691,0.35,3539.0,3538.4,2.4754]
[1721606530582,0.35,3539.0,3538.1,2.4754]
[1721606532197,0.64293497,3539.0,3538.1,2.4754]
[1721606533003,0.29293497,3539.0,3538.1,2.4754]
[1721606533205,0.70417837,3540.2,3538.3,2.451]
[1721606533408,0.70417837,3540.2,3538.2,0.97754]
[1721606533409,0.35,3539.6,3538.7,2.451]
[1721606533581,0.29553837,3540.2,3538.7,2.451]
[1721606533781,0.35,3539.8,3538.7,2.451]
[1721606535174,0.29553837,3540.2,3538.7,2.451]
[1721606535374,0.29553837,3540.2,3538.6,7.3]
[1721606535375,0.29553837,3540.2,3538.9,2.4275]
[1721606535611,0.35,3540.0,3538.9,2.4275]
[1721606538001,2.82548,3539.3,3538.9,2.4275]
[1721606539088,2.82538,3539.4,3538.9,2.4275]
[1721606539494,2.82547,3539.3,3538.9,2.4275]
[1721606539705,2.82547,3539.3,3539.0,0.622848]
[1721606539926,2.82547,3539.3,3539.1,2.422]
[1721606540122,2.82538,3539.4,3539.1,2.422]
[1721606540123,2.82549,3539.2,3539.1,2.422]
[1721606540276,2.82538,3539.4,3539.1,2.422]
[1721606540476,2.82521,3539.6,3539.1,2.88307042]
[1721606540723,2.82525,3539.5,3539.1,2.88307042]
[1721606540938,0.44315635,3539.7,3539.1,2.88307042]
[1721606541216,2.82455,3540.4,3539.2,3.04753529]
[1721606541421,0.44309388,3540.5,3539.5,2.93005624]
[1721606541582,0.44309388,3540.5,3539.6,2.45677905]
[1721606541780,0.44309388,3540.5,3539.5,2.3393]
[1721606541984,2.82484,3540.1,3539.6,2.45659985]
[1721606542206,2.82484,3540.1,3539.6,0.69948215]
[1721606542401,3.44309388,3540.5,3539.7,0.98263067]
[1721606542624,2.82484,3540.1,3539.3,0.59075624]
[1721606542805,2.82541,3539.3,3539.2,2.3393]
[1721606543018,2.82541,3539.3,3539.2,3.32208124]
[1721606543204,2.82541,3539.3,3539.2,2.3393]
[1721606543384,2.82541,3539.3,3539.2,3.32211468]
[1721606543790,2.82541,3539.3,3539.2,2.3393]
[1721606544392,2.82541,3539.3,3539.2,3.32210265]
[1721606545291,2.82541,3539.3,3539.2,2.3393]
[1721606546198,2.82541,3539.3,3539.2,3.32210555]
[1721606546409,2.82541,3539.3,3539.2,2.3393]
[1721606547191,0.14168942,3540.3,3539.2,2.3393]
[1721606547192,2.82534,3539.4,3539.2,2.3393]
[1721606547823,2.82518,3539.6,3539.2,2.3393]
[1721606548223,2.82502,3539.8,3539.2,2.3393]
[1721606548427,2.82502,3539.8,3539.4,2.4716]
[1721606548990,3.26760388,3540.5,3539.4,2.4716]
[1721606548991,2.82467,3540.3,3539.4,2.4716]
[1721606549271,2.82467,3540.3,3539.6,2.2869]
[1721606550420,2.82478,3540.1,3539.6,2.2869]
[1721606550723,2.82487,3540.0,3539.6,2.2869]
[1721606551222,2.82495,3539.9,3539.6,2.2869]
[1721606552527,2.82509,3539.7,3539.6,2.2869]
[1721606552825,2.82457,3540.4,3539.4,2.2961]
[1721606552826,2.82532,3539.5,3539.4,2.2961]
[1721606556747,2.82503,3539.8,3539.4,2.2961]
[1721606556948,2.82519,3539.6,3539.4,2.2961]
[1721606557922,2.82503,3539.8,3539.4,2.2961]
[1721606558539,2.82505,3539.8,3539.4,2.2961]
[1721606558742,2.82519,3539.6,3539.4,2.2961]
[1721606559952,2.82495,3539.9,3539.4,2.2961]
[1721606560306,2.82495,3539.9,3539.4,2.808267]
[1721606561009,2.82484,3540.1,3539.4,2.808267]
[1721606561228,2.82487,3540.0,3539.4,2.808267]
[1721606563439,3.0,3540.3,3539.4,2.808267]
[1721606563440,2.82493,3539.9,3539.4,2.808267]
[1721606563757,2.82495,3539.9,3539.4,2.2961]
[1721606564052,6.17463,3540.3,3539.4,2.2961]
[1721606564238,2.82523,3539.6,3539.4,2.2961]
[1721606565474,0.66177239,3540.2,3539.4,2.2961]
[1721606565475,2.82487,3540.0,3539.4,2.2961]
[1721606566971,2.82494,3539.9,3539.4,2.2961]
[1721606567961,2.82503,3539.8,3539.4,2.2961]
[1721606568120,2.82486,3540.0,3539.4,2.2961]
[1721606568121,2.8251,3539.7,3539.4,2.2961]
[1721606569470,2.82486,3540.0,3539.4,2.2961]
[1721606569759,3.0,3540.4,3539.4,2.52571]
[1721606569760,2.82496,3539.9,3539.4,2.52571]
[1721606569924,2.82496,3539.9,3539.4,2.2961]
[1721606570920,2.82486,3540.0,3539.4,2.2961]
[1721606571124,2.82519,3539.6,3539.4,2.2961]
[1721606573299,2.82503,3539.8,3539.4,2.2961]
[1721606573577,3.0,3540.4,3539.4,2.2961]
[1721606573578,2.82512,3539.7,3539.4,2.2961]
[1721606574375,2.82518,3539.6,3539.4,2.2961]
[1721606575287,2.82504,3539.8,3539.4,2.2961]
[1721606580048,2.82487,3540.0,3539.4,2.2961]
[1721606580896,2.338383,3540.0,3539.4,2.2961]
[1721606581066,2.338383,3540.0,3539.6,2.38]
[1721606581262,3.0,3540.1,3539.6,2.38]
[1721606581465,2.82491,3540.0,3539.6,2.38]
[1721606581663,2.82131784,3540.2,3539.6,2.38]
[1721606581953,3.44309388,3540.5,3540.1,2.4651]
[1721606581954,0.44309388,3540.5,3540.1,2.4651]
[1721606582185,2.82423,3540.8,3540.4,2.4651]
[1721606582385,2.82373,3541.5,3540.4,2.4651]
[1721606582386,2.8243,3540.7,3540.4,2.4651]
[1721606583263,2.8244,3540.6,3540.4,2.4651]
[1721606583482,2.82422,3540.8,3540.4,2.4651]
[1721606583689,2.82444,3540.6,3540.4,2.4651]
[1721606584053,2.82445,3540.5,3540.4,2.4651]
[1721606585673,2.82433,3540.7,3540.4,2.4651]
[1721606585987,2.82433,3540.7,3540.4,2.746621]
[1721606586164,0.44299381,3541.2,3540.4,2.746621]
[1721606586165,2.82418,3540.9,3540.4,2.746621]
[1721606586894,2.82424,3540.8,3540.4,2.746621]
[1721606587095,2.82424,3540.8,3540.5,0.3096731]
[1721606587603,2.82406,3541.0,3540.5,0.3096731]
[1721606587811,0.44299381,3541.2,3540.5,0.3096731]
[1721606587812,3.26692381,3541.2,3540.6,2.261]
[1721606588170,0.44299381,3541.2,3540.7,2.82429]
[1721606588370,2.82334,3541.9,3540.9,2.261]
[1721606588601,2.4896,3542.6,3540.9,2.261]
[1721606588602,2.82342,3541.8,3540.9,2.261]
[1721606588910,2.82375,3541.4,3540.9,2.261]
[1721606589069,2.82335,3541.9,3540.9,2.82413]
[1721606589270,0.44289826,3542.1,3540.9,2.82413]
[1721606589271,2.82329,3542.0,3541.1,2.82398]
[1721606589478,2.82329,3542.0,3541.2,3.00875865]
[1721606589678,2.82319,3542.1,3541.3,5.31859102]
[1721606589921,2.82319,3542.1,3541.4,2.49476827]
[1721606590519,2.82319,3542.1,3541.4,2.4383]
[1721606591328,2.82295,3542.4,3541.5,2.4166]
[1721606591532,2.82295,3542.4,3541.5,3.00332353]
[1721606591533,2.82316,3542.2,3541.5,3.00332353]
[1721606591678,2.82318,3542.1,3541.5,3.00332353]
[1721606592178,2.82295,3542.4,3541.5,2.4166]
[1721606593310,3.44284005,3542.7,3541.5,2.4166]
[1721606593311,2.82303,3542.3,3541.5,2.4166]
[1721606593503,2.82333,3542.0,3541.5,2.4166]
[1721606593710,2.82348,3541.8,3541.5,2.4166]
[1721606593912,2.8235,3541.7,3541.5,2.4166]
[1721606595925,2.82358,3541.6,3541.5,2.4166]
[1721606601718,5.45992692,3542.6,3541.0,2.4247]
[1721606601719,2.82398,3541.1,3541.0,2.4247]
[1721606603865,2.82398,3541.1,3540.4,19.77]
[1721606603866,2.82427,3540.8,3540.7,2.4247]
[1721606604382,5.64854,3540.8,3540.7,2.4247]
[1721606604717,2.82427,3540.8,3540.7,2.4247]
[1721606605458,2.82406,3541.0,3540.7,2.4247]
[1721606606120,2.82415,3540.9,3540.7,2.4247]
[1721606606317,2.82422,3540.8,3540.7,2.4247]
[1721606608758,2.82415,3540.9,3540.7,2.4247]
[1721606610057,2.82406,3541.0,3540.7,2.4247]
[1721606610259,2.82391,3541.2,3540.7,2.4247]
[1721606610465,3.0,3542.0,3540.8,0.05648281]
[1721606610636,2.82378,3541.4,3540.8,2.62181828]
[1721606611658,2.82346,3541.8,3540.9,2.82406]
[1721606611859,0.5802538,3542.7,3541.1,2.2844]
[1721606612030,2.82311,3542.2,3541.3,2.2844]
[1721606612243,2.82294,3542.4,3541.5,2.82363]
[1721606612444,0.44284005,3542.7,3541.8,2.82341]
[1721606612773,2.82235,3543.2,3542.1,2.82311]
[1721606612968,2.82253,3543.0,3542.3,2.2844]
[1721606613115,2.82253,3543.0,3542.4,0.05645317]
[1721606613318,2.82235,3543.2,3542.3,2.80079632]
[1721606614150,2.82247,3543.0,3542.3,2.80079632]
[1721606614349,2.82271,3542.7,3542.3,2.80079632]
[1721606614736,2.82271,3542.7,3542.3,2.2844]
[1721606615022,2.8228,3542.6,3542.3,2.2844]
[1721606615418,2.82286,3542.6,3542.3,2.2844]
[1721606615617,2.82288,3542.5,3542.3,2.2844]
[1721606616862,5.64581,3542.5,3542.3,2.2844]
[1721606617063,2.82288,3542.5,3542.3,2.2844]
[1721606618182,2.82272,3542.7,3542.3,2.2844]
[1721606618468,2.82272,3542.7,3542.3,3.24284]
[1721606619027,2.82281,3542.6,3542.3,3.24284]
[1721606619230,2.82288,3542.5,3542.3,2.2844]
[1721606620475,2.82294,3542.4,3542.3,2.2844]
[1721606620654,2.23379967,3542.4,3542.3,2.2844]
[1721606622895,2.82282,3542.6,3542.3,2.2844]
[1721606623174,2.8229,3542.5,3542.3,2.2844]
[1721606623876,2.82294,3542.4,3542.3,2.2844]
[1721606631696,2.82294,3542.4,3542.3,1.14535816]
[1721606633118,2.82287,3542.5,3542.3,1.14535816]
[1721606634120,2.8222,3543.4,3542.3,1.14535816]
[1721606634421,2.82262,3542.8,3542.3,1.14535816]
[1721606634633,2.82288,3542.5,3542.3,1.14535816]
[1721606635704,2.82294,3542.4,3542.3,1.14535816]
[1721606637286,2.82269,3542.8,3541.9,2.3106]
[1721606637517,2.82307,3542.3,3541.9,2.3106]
[1721606638589,2.82291,3542.5,3541.9,2.3106]
[1721606639090,2.82297,3542.4,3541.9,2.3106]
[1721606640503,2.82302,3542.3,3541.9,2.3106]
[1721606643426,2.82262,3542.8,3542.0,1.034]
[1721606643730,2.82248,3543.0,3542.2,1.034]
[1721606644228,2.82278,3542.6,3542.2,1.034]
[1721606644808,2.82287,3542.5,3542.2,1.034]
[1721606645141,2.82287,3542.5,3542.0,1.034]
[1721606646524,2.82278,3542.6,3542.0,1.034]
[1721606646712,2.82278,3542.6,3541.9,2.3106]
[1721606646713,2.82302,3542.3,3541.9,2.3106]
[1721606646916,2.82293,3542.5,3541.9,2.3106]
[1721606647137,2.82295,3542.4,3541.9,3.657417]
[1721606647468,2.3343,3542.9,3541.9,2.3106]
[1721606647469,2.82318,3542.1,3541.9,2.3106]
[1721606647623,2.3343,3542.9,3541.7,7.3]
[1721606647807,2.82339,3541.9,3541.7,7.3]
[1721606648011,2.82339,3541.9,3541.5,2.4526]
[1721606648314,2.82343,3541.8,3541.5,2.4526]
[1721606648508,2.82356,3541.7,3541.5,2.4526]
[1721606649240,2.82338,3541.9,3541.5,2.4526]
[1721606649630,2.82312,3542.2,3541.5,2.4526]
[1721606649835,2.82312,3542.2,3541.6,1.034]
[1721606650335,2.82318,3542.1,3541.5,2.4526]
[1721606651839,2.82308,3542.3,3541.5,4.227233]
[1721606652371,2.82266,3542.8,3541.5,4.227233]
[1721606652688,3.0,3542.7,3541.5,9.7526]
[1721606653175,2.82335,3541.9,3541.5,9.7526]
[1721606653477,2.82335,3541.9,3541.5,2.4526]
[1721606654861,2.82317,3542.2,3541.5,5.27625]
[1721606655173,3.11734916,3543.7,3541.5,5.27625]
[1721606655174,2.82279,3542.6,3541.9,2.82332]
[1721606655346,2.82279,3542.6,3541.8,5.12402]
[1721606656382,2.82287,3542.5,3541.8,5.12402]
[1721606656538,2.82287,3542.5,3541.9,0.98196169]
[1721606656739,2.82287,3542.5,3541.8,5.12402]
[1721606657085,2.82287,3542.5,3541.9,1.66119991]
[1721606657282,2.82287,3542.5,3541.9,0.67924012]
[1721606657580,2.82309,3542.3,3542.0,0.98196115]
[1721606657786,2.82307,3542.3,3541.8,2.3006]
[1721606658077,2.82307,3542.3,3541.9,0.9819889]
[1721606658237,2.82307,3542.3,3541.8,2.3006]
[1721606658440,2.82307,3542.3,3541.9,0.98200478]
[1721606658649,2.82307,3542.3,3541.8,3.06847556]
[1721606658840,2.82307,3542.3,3541.9,0.98198706]
[1721606659063,2.82307,3542.3,3541.8,3.06847556]
[1721606659391,2.82288,3542.5,3541.9,0.98199201]
[1721606659540,2.82294,3542.4,3541.8,3.06847556]
[1721606659742,2.82302,3542.3,3541.9,0.98198434]
[1721606659967,2.82302,3542.3,3541.8,3.06847556]
[1721606660163,2.8229,3542.5,3541.9,3.21100322]
[1721606660439,2.82278,3542.6,3541.9,0.75603768]
[1721606660642,2.82295,3542.4,3541.9,0.75603768]
[1721606660839,2.82295,3542.4,3542.0,0.98197404]
[1721606661039,2.82295,3542.4,3541.9,0.75603768]
[1721606661285,2.82295,3542.4,3542.0,0.9819736]
[1721606661481,2.82295,3542.4,3541.9,0.75603768]
[1721606661689,2.82329,3542.0,3541.8,2.3006]
[1721606661848,2.82326,3542.1,3541.8,2.3006]
[1721606662265,2.82327,3542.0,3541.8,2.3006]
[1721606662459,2.82275,3542.7,3541.8,2.3006]
[1721606662460,2.82334,3541.9,3541.8,2.3006]
[1721606662688,2.82334,3541.9,3541.5,3.01985624]
[1721606663001,2.82334,3541.9,3541.6,2.45505453]
[1721606663200,2.82334,3541.9,3541.7,0.98202181]
[1721606663374,2.82343,3541.8,3541.5,3.01985624]
[1721606663572,2.82343,3541.8,3541.6,2.4550681]
[1721606663779,2.82343,3541.8,3541.7,0.98202724]
[1721606664198,2.82343,3541.8,3541.5,2.4291]
[1721606664365,2.82343,3541.8,3541.6,2.45511261]
[1721606664561,2.82343,3541.8,3541.5,2.4291]
[1721606664758,2.8235,3541.7,3541.6,2.45511278]
[1721606664958,2.8235,3541.7,3541.3,0.88613436]
[1721606664959,2.82371,3541.5,3541.3,0.59075624]
[1721606665189,2.82371,3541.5,3541.2,2.4733]
[1721606665577,2.82371,3541.5,3541.3,2.45537616]
[1721606665801,2.82371,3541.5,3541.2,2.4733]
[1721606665958,2.82371,3541.5,3541.3,0.98213582]
[1721606666162,2.82371,3541.5,3541.2,2.4733]
[1721606666389,2.82371,3541.5,3541.3,0.98214874]
[1721606666603,2.8235,3541.7,3541.2,2.4733]
[1721606666767,2.8235,3541.7,3541.3,0.98214127]
[1721606666966,2.8235,3541.7,3541.2,2.4733]
[1721606667180,2.8235,3541.7,3541.3,0.98213913]
[1721606667378,2.8235,3541.7,3541.2,2.4733]
[1721606667558,2.8235,3541.7,3541.3,0.98213378]
[1721606667760,2.8235,3541.7,3541.2,2.4733]
[1721606667963,2.8235,3541.7,3541.3,0.98213384]
[1721606668179,2.8235,3541.7,3541.2,2.4733]
[1721606668574,2.8235,3541.7,3541.3,0.98213351]
[1721606668806,2.8235,3541.7,3541.2,2.4733]
[1721606668977,2.82343,3541.8,3541.3,0.98213479]
[1721606669173,2.82343,3541.8,3541.2,5.12772406]
[1721606669174,2.82319,3542.1,3541.2,5.12772406]
[1721606669410,2.4493,3542.6,3541.3,2.45528941]
[1721606669617,2.4493,3542.6,3541.4,2.45524293]
[1721606669618,5.4493,3542.6,3541.4,2.45524293]
[1721606669832,5.4493,3542.6,3541.5,2.45520803]
[1721606670002,2.82311,3542.2,3541.3,0.59075624]
[1721606670188,3.650117,3542.5,3541.4,2.45512747]
[1721606670387,3.650117,3542.5,3541.2,3.06405624]
[1721606670587,3.650117,3542.5,3541.3,2.45522868]
[1721606670827,3.650117,3542.5,3541.4,0.98209147]
[1721606671126,2.8232,3542.1,3541.2,3.06405624]
[1721606671328,2.82344,3541.8,3541.3,2.4552557]
[1721606671634,2.82344,3541.8,3541.2,3.06405624]
[1721606671790,2.82326,3542.0,3541.3,2.45524835]
[1721606671989,2.82326,3542.0,3541.4,2.45521049]
[1721606672228,2.82326,3542.0,3541.2,5.88793624]
[1721606672429,2.82326,3542.0,3541.3,4.14500709]
[1721606672630,2.82326,3542.0,3541.4,2.45519503]
[1721606672937,2.82326,3542.0,3541.5,0.98207801]
[1721606673103,2.82303,3542.3,3541.6,4.84277823]
[1721606673282,2.82303,3542.3,3541.6,2.3877]
[1721606673486,2.82303,3542.3,3541.7,0.98201504]